fUST/lending_fUST_20250521
["ID","MTS","AMOUNT","RATE_DAILY","PERIOD"]
[361850062,1747839044583,-253.51238828,0.00022973,2]
[361850064,1747839044593,-407.74238579,0.00022998,2]
[361850066,1747839044604,-500.0,0.00022998,2]
[361850068,1747839044614,-500.0,0.00022998,2]
[361850070,1747839044624,-500.0,0.00022998,2]
[361850072,1747839044634,-500.0,0.00022998,2]
[361850074,1747839044644,-500.0,0.00022998,2]
[361850076,1747839044653,-406.09371948,0.00022998,2]
[361850078,1747839044663,-500.0,0.00022998,2]
[361850080,1747839044673,-500.0,0.00022998,2]
[361850082,1747839044682,-500.0,0.00022998,2]
[361850084,1747839044692,-263.35052193,0.00022998,2]
[361850086,1747839044701,-500.0,0.00022998,2]
[361850088,1747839044711,-500.0,0.00022998,2]
[361850090,1747839044724,-500.0,0.00022998,2]
[361850092,1747839044733,-151.664068,0.00022999,7]
[361850094,1747839044743,-200.0,0.00022999,30]
[361850096,1747839044753,-183.181668,0.00022999,7]
[361850098,1747839044762,-183.181668,0.00022999,7]
[361850100,1747839044772,-154.703523,0.00022999,7]
[361850102,1747839044781,-151.0,0.00022999,7]
[361850104,1747839044791,-151.760983,0.00022999,7]
[361850106,1747839044801,-191.202874,0.00022999,7]
[361850108,1747839044811,-151.0,0.00022999,7]
[361850110,1747839044820,-151.0,0.00022999,7]
[361850128,1747839044991,-151.0,0.00022999,7]
[361850130,1747839045002,-151.0,0.00022999,7]
[361850132,1747839045014,-151.631799,0.00022999,7]
[361850134,1747839045023,-151.0,0.00022999,7]
[361850136,1747839045033,-151.0,0.00022999,7]
[361850137,1747839045042,-151.0,0.00022999,7]
[361850138,1747839045065,-156.131678,0.00022999,7]
[361850139,1747839045075,-151.0,0.00022999,7]
[361850140,1747839045086,-151.0,0.00022999,7]
[361850141,1747839045096,-151.0,0.00022999,7]
[361850142,1747839045106,-163.081142,0.00022999,7]
[361850143,1747839045116,-153.2916,0.00022999,2]
[361850144,1747839045126,-151.0,0.00022999,7]
[361850145,1747839045137,-151.0,0.00022999,7]
[361850146,1747839045147,-151.0,0.00022999,7]
[361850147,1747839045158,-151.0,0.00022999,7]
[361850148,1747839045168,-151.0,0.00022999,7]
[361850149,1747839045179,-151.0,0.00022999,7]
[361850150,1747839045189,-151.0,0.00022999,7]
[361850151,1747839045199,-151.0,0.00022999,7]
[361850152,1747839045210,-151.0,0.00022999,7]
[361850153,1747839045223,-151.0,0.00022999,7]
[361850154,1747839045234,-151.0,0.00022999,7]
[361850155,1747839045244,-151.0,0.00022999,7]
[361850156,1747839045255,-151.0,0.00022999,7]
[361850157,1747839045265,-151.0,0.00022999,7]
[361850158,1747839045276,-160.83129,0.00022999,7]
[361850159,1747839045287,-151.0,0.00022999,7]
[361850160,1747839045297,-155.670569,0.00022999,7]
[361850161,1747839045307,-152.059411,0.00022999,7]
[361850162,1747839045317,-155.670569,0.00022999,7]
[361850163,1747839045327,-155.670569,0.00022999,7]
[361850164,1747839045336,-155.670569,0.00022999,7]
[361850165,1747839045347,-151.0,0.00022999,7]
[361850166,1747839045357,-151.0,0.00022999,7]
[361850167,1747839045367,-151.0,0.00022999,7]
[361850168,1747839045377,-151.0,0.00022999,7]
[361850169,1747839045388,-151.0,0.00022999,7]
[361850170,1747839045398,-151.0,0.00022999,7]
[361850171,1747839045408,-186.816512,0.00022999,7]
[361850172,1747839045418,-151.0,0.00022999,7]
[361850173,1747839045433,-151.0,0.00022999,7]
[361850174,1747839045443,-164.341991,0.00022999,2]
[361850175,1747839045453,-164.341991,0.00022999,2]
[361850176,1747839045462,-164.341991,0.00022999,2]
[361850177,1747839045478,-164.341991,0.00022999,2]
[361850178,1747839045488,-164.341991,0.00022999,2]
[361850179,1747839045498,-164.341991,0.00022999,2]
[361850180,1747839045508,-151.0,0.00022999,7]
[361850181,1747839045519,-500.0,0.00022999,7]
[361850182,1747839045529,-152.578597,0.00022999,7]
[361850183,1747839045540,-151.0,0.00022999,7]
[361850184,1747839045550,-151.0,0.00022999,7]
[361850185,1747839045560,-151.0,0.00022999,7]
[361850186,1747839045570,-11920.84900469,0.00022999,2]
[361850187,1747839045580,-50000.0,0.00023,2]
[361850188,1747839045590,-50000.0,0.00023,2]
[361850189,1747839045599,-50000.0,0.00023,2]
[361850190,1747839045609,-5513.48541244,0.00023,2]
[361850191,1747839045625,-26074.55191868,0.00023,2]
[361850192,1747839045637,-1079.6,0.00023,2]
[361850199,1747839046602,-1504.58521337,0.00023,2]
[361850200,1747839046637,-429.9823199,0.00023,2]
[361851298,1747839242353,5000.0,0.0002,2]
[361851299,1747839247374,10000.0,0.0002,2]
[361851300,1747839257681,3281.368,0.0002,2]
[361851301,1747839260243,10000.0,0.0002,2]
[361851302,1747839272104,10000.0,0.0002,2]
[361851303,1747839280569,10000.0,0.0002,2]
[361851304,1747839291194,10000.0,0.0002,2]
[361851305,1747839301501,10000.0,0.0002,2]
[361851306,1747839303161,7396.0,0.000134,2]
[361851307,1747839311956,151.40399701,0.0002,2]
[361851308,1747839323851,10000.0,0.000171,2]
[361851309,1747839338891,6453.140655,0.000171,2]
[361851310,1747839348597,10000.0,0.00015,2]
[361851311,1747839360423,10000.0,0.00015,2]
[361851312,1747839375564,10000.0,0.00015,2]
[361851313,1747839385042,10000.0,0.00015,2]
[361851314,1747839394742,10000.0,0.00015,2]
[361851315,1747839415896,5491.0,0.00015,2]
[361851316,1747839791019,180.965389,0.00013699,2]
[361851318,1747840049172,-917.2036085,0.000171,2]
[361851319,1747840154232,-2629.6557365,0.000171,2]
[361851634,1747840237753,-189.98569573,0.000189,2]
[361851635,1747840237763,-300.0,0.00019998,2]
[361851636,1747840237774,-300.0,0.00019998,2]
[361851637,1747840237783,-1200.0,0.00019998,2]
[361851639,1747840237793,-300.0,0.00019998,2]
[361851641,1747840237803,-5000.0,0.00019999,2]
[361851643,1747840237814,-9848.59600299,0.0002,2]
[361851645,1747840237824,-208.32778591,0.00020027,3]
[361851647,1747840237834,-180.965389,0.00020187,2]
[361851649,1747840237856,-514.33626542,0.000209,4]
[361851650,1747840237867,-514.33626523,0.00021072,4]
[361851651,1747840237878,-514.33626523,0.00021245,4]
[361851652,1747840237889,-500.0,0.00021327,2]
[361851653,1747840237899,-514.33626523,0.00021417,5]
[361851654,1747840237914,-514.33626523,0.0002159,5]
[361851655,1747840237924,-514.33626523,0.00021762,5]
[361851656,1747840237935,-420.0,0.00021776,2]
[361851657,1747840237947,-420.0,0.00021776,2]
[361851658,1747840237958,-430.0,0.00021917,2]
[361851659,1747840237968,-442.22616126,0.00021917,2]
[361851660,1747840237978,-1001.62,0.00021917,2]
[361851661,1747840237990,-430.0,0.00021917,2]
[361851662,1747840238001,-285.04992712,0.00021917,2]
[361851663,1747840238011,-323.95712502,0.00021917,2]
[361851664,1747840238021,-430.0,0.00021917,2]
[361851665,1747840238033,-430.0,0.00021917,2]
[361851666,1747840238042,-430.0,0.00021917,2]
[361851667,1747840238054,-430.0,0.00021917,2]
[361851668,1747840238064,-430.0,0.00021917,2]
[361851669,1747840238074,-229.26764138,0.00021917,2]
[361851670,1747840238084,-514.33626523,0.00021934,6]
[361851671,1747840238094,-161.0,0.00022,2]
[361851672,1747840238109,-514.33626523,0.00022107,6]
[361851673,1747840238134,-422.71322487,0.00022167,2]
[361851674,1747840238156,-160.0,0.00022173,2]
[361851675,1747840238198,-500.0,0.00022181,2]
[361851676,1747840238236,-500.0,0.00022181,2]
[361851678,1747840238272,-500.0,0.00022181,2]
[361851679,1747840238306,-500.0,0.00022181,2]
[361851681,1747840238344,-500.0,0.00022181,2]
[361851684,1747840238385,-500.0,0.00022181,2]
[361851687,1747840238404,-500.0,0.00022181,2]
[361851690,1747840238415,-414.50541144,0.00022181,2]
[361851692,1747840238424,-500.0,0.00022181,2]
[361851694,1747840238434,-500.0,0.00022181,2]
[361851697,1747840238444,-500.0,0.00022181,2]
[361851699,1747840238454,-500.0,0.00022181,2]
[361851701,1747840238464,-252.9433679,0.00022181,2]
[361851703,1747840238473,-500.79438565,0.00022181,2]
[361851705,1747840238483,-280.5,0.00022181,2]
[361851707,1747840238492,-500.0,0.00022181,2]
[361851709,1747840238502,-1001.62,0.00022191,2]
[361851711,1747840238512,-430.0,0.00022191,2]
[361851713,1747840238521,-430.0,0.00022191,2]
[361851715,1747840238531,-430.0,0.00022191,2]
[361851717,1747840238542,-438.93474377,0.00022251,2]
[361851719,1747840238552,-430.0,0.00022251,2]
[361851721,1747840238561,-3595.34,0.00022251,2]
[361851723,1747840238571,-430.0,0.00022251,2]
[361851725,1747840238581,-272.80785142,0.00022251,2]
[361851727,1747840238592,-567.6710772,0.00022251,2]
[361851729,1747840238604,-755.62,0.00022251,2]
[361851730,1747840238614,-1062.36,0.00022251,2]
[361851732,1747840238624,-430.0,0.00022251,2]
[361851734,1747840238634,-430.0,0.00022251,2]
[361851736,1747840238644,-430.0,0.00022251,2]
[361851738,1747840238653,-165.036,0.00022253,2]
[361851740,1747840238666,-404.80428803,0.00022253,2]
[361851742,1747840238677,-336.62409257,0.00022253,2]
[361851744,1747840238688,-430.0,0.00022254,2]
[361851746,1747840238699,-157.0640115,0.00022278,2]
[361851748,1747840238710,-514.33626523,0.00022279,6]
[361851750,1747840238721,-514.33626523,0.00022452,7]
[361851752,1747840238731,-1001.62,0.00022465,2]
[361851754,1747840238741,-430.0,0.00022465,2]
[361851756,1747840238750,-430.0,0.00022465,2]
[361851758,1747840238760,-430.0,0.00022465,2]
[361851760,1747840238771,-3595.34,0.00022525,2]
[361851762,1747840238781,-755.62,0.00022525,2]
[361851764,1747840238791,-1062.36,0.00022525,2]
[361851766,1747840238801,-430.0,0.00022525,2]
[361851768,1747840238810,-543.286404,0.0002254,2]
[361851770,1747840238820,-154.138516,0.00022595,2]
[361851773,1747840238831,-514.33626523,0.00022624,7]
[361851775,1747840238840,-300.0,0.00022739,2]
[361851777,1747840238850,-300.0,0.00022739,2]
[361851778,1747840238860,-1001.62,0.00022739,2]
[361851781,1747840238871,-430.0,0.00022739,2]
[361851783,1747840238881,-430.0,0.00022739,2]
[361851785,1747840238893,-430.0,0.00022739,2]
[361851787,1747840238904,-514.33626523,0.00022797,7]
[361851789,1747840238917,-3595.34,0.00022799,2]
[361851791,1747840238927,-755.62,0.00022799,2]
[361851793,1747840238939,-1062.36,0.00022799,2]
[361851794,1747840238949,-151.53083472,0.000229,2]
[361851796,1747840238959,-2222.83502486,0.000229,2]
[361851799,1747840238971,-154.138516,0.0002295,3]
[361851801,1747840238982,-514.33626523,0.00022969,8]
[361851803,1747840238993,-500.0,0.00022973,2]
[361851805,1747840239005,-356.48510191,0.00022999,2]
[361851807,1747840239017,-500.0,0.00022999,2]
[361851809,1747840239028,-173.41398291,0.00022999,2]
[361851811,1747840239039,-500.0,0.00022999,2]
[361851813,1747840239049,-500.0,0.00022999,2]
[361851816,1747840239060,-500.0,0.00022999,2]
[361851819,1747840239071,-500.0,0.00022999,2]
[361851821,1747840239081,-500.0,0.00022999,2]
[361851824,1747840239090,-500.0,0.00022999,2]
[361851826,1747840239101,-500.0,0.00022999,2]
[361851828,1747840239114,-500.0,0.00022999,2]
[361851830,1747840239126,-400.0,0.00022999,2]
[361851832,1747840239136,-200.0,0.00022999,30]
[361851834,1747840239146,-151.0,0.00022999,7]
[361851837,1747840239156,-500.0,0.00022999,2]
[361851839,1747840239170,-500.0,0.00022999,2]
[361851841,1747840239180,-153.09728085,0.00022999,2]
[361851843,1747840239189,-500.0,0.00022999,2]
[361851845,1747840239199,-151.0,0.00022999,7]
[361851847,1747840239209,-151.0,0.00022999,7]
[361851849,1747840239219,-151.0,0.00022999,7]
[361851851,1747840239229,-151.0,0.00022999,7]
[361851853,1747840239238,-151.0,0.00022999,7]
[361851855,1747840239248,-151.0,0.00022999,7]
[361851857,1747840239258,-151.0,0.00022999,7]
[361851859,1747840239267,-151.0,0.00022999,2]
[361851862,1747840239278,-151.0,0.00022999,2]
[361851864,1747840239287,-151.0,0.00022999,7]
[361851865,1747840239298,-151.0,0.00022999,7]
[361851867,1747840239307,-5960.42450235,0.00023,2]
[361851869,1747840239316,-2230.75964561,0.00023,3]
[361851871,1747840239327,-15397.79513561,0.00023,2]
[361851873,1747840239336,-50000.0,0.00023,2]
[361851876,1747840239346,-50000.0,0.00023,2]
[361851877,1747840239355,-50000.0,0.00023,2]
[361851879,1747840239365,-50000.0,0.00023,2]
[361851882,1747840239375,-50000.0,0.00023,2]
[361851884,1747840239384,-18702.41312354,0.00023,2]
[361851888,1747840239418,-708.43795877,0.00023,2]
[361851890,1747840239429,-813.62704925,0.00023,2]
[361851892,1747840239441,-1806.41131233,0.00023,2]
[361851894,1747840239452,-2571.2,0.00023,2]
[361851896,1747840239463,-467.84332344,0.00023,2]
[361851899,1747840239475,-1091.75768956,0.00023,2]
[361852074,1747840241095,-14344.354829,0.00023,2]
[361852079,1747840241138,-1295.48184734,0.00023,2]
[361852095,1747840241287,-714.78080813,0.00023,2]
[361852098,1747840241301,-994.5,0.00023,2]
[361852342,1747840244462,-500.0,0.00022181,2]
[361852344,1747840244472,-313.24743095,0.0002277,2]
[361852346,1747840244482,-6489.19205864,0.00023,2]
[361852348,1747840244492,-15504.71551041,0.00023,2]
[361852351,1747840244504,-28095.28448959,0.00023,2]
[361852353,1747840244514,-407.76277742,0.00023,7]
[361852355,1747840244524,-1286.54,0.00023,2]
[361852357,1747840244534,-156.75160391,0.00023,2]
[361852363,1747840244588,-75.64839609,0.00023,2]
[361852365,1747840244597,-469.25160391,0.00023,30]
[361852612,1747840247316,-209.41877875,0.00019898,2]
[361852614,1747840247326,-30.74839609,0.00023,30]
[361852616,1747840247335,-500.0,0.00023,30]
[361852618,1747840247345,-500.0,0.00023,30]
[361852620,1747840247355,-500.0,0.00023,30]
[361852622,1747840247365,-676.91959528,0.00023,30]
[361852624,1747840247378,-500.0,0.00023,30]
[361852626,1747840247388,-500.0,0.00023,30]
[361852628,1747840247399,-500.0,0.00023,30]
[361852630,1747840247409,-502.09050588,0.00023,30]
[361852632,1747840247423,-500.0,0.00023,30]
[361852634,1747840247433,-500.0,0.00023,30]
[361852636,1747840247443,-500.0,0.00023,30]
[361852637,1747840247453,-500.0,0.00023,30]
[361852639,1747840247464,-500.0,0.00023,30]
[361852641,1747840247473,-500.0,0.00023,30]
[361852643,1747840247483,-500.0,0.00023,30]
[361852645,1747840247494,-500.0,0.00023,30]
[361852647,1747840247503,-500.0,0.00023,30]
[361852649,1747840247514,-500.0,0.00023,30]
[361852651,1747840247528,-500.0,0.00023,30]
[361852653,1747840247537,-500.0,0.00023,30]
[361852655,1747840247546,-600.0,0.00023,30]
[361852657,1747840247555,-522.38253939,0.00023,30]
[361852659,1747840247564,-345.22748998,0.00023,2]
[361852661,1747840247574,-100000.0,0.00023,2]
[361852663,1747840247583,-152.399516,0.00023,7]
[361852665,1747840247592,-152.114999,0.00023,7]
[361852667,1747840247602,-152.67247,0.00023,7]
[361852669,1747840247611,-151.0,0.00023,7]
[361852670,1747840247620,-258.525096,0.00023,7]
[361852672,1747840247629,-164.863502,0.00023,7]
[361852674,1747840247638,-164.863502,0.00023,7]
[361852676,1747840247648,-164.863502,0.00023,7]
[361852678,1747840247658,-164.863502,0.00023,7]
[361852680,1747840247668,-164.863502,0.00023,7]
[361852682,1747840247680,-164.863502,0.00023,7]
[361852683,1747840247689,-164.863502,0.00023,7]
[361852685,1747840247699,-164.863502,0.00023,7]
[361852687,1747840247711,-164.863502,0.00023,7]
[361852689,1747840247720,-164.863502,0.00023,7]
[361852691,1747840247730,-164.863502,0.00023,7]
[361852693,1747840247740,-164.863502,0.00023,7]
[361852695,1747840247751,-164.863502,0.00023,7]
[361852697,1747840247762,-164.863502,0.00023,7]
[361852699,1747840247773,-164.863502,0.00023,7]
[361852700,1747840247783,-164.863502,0.00023,7]
[361852702,1747840247794,-164.863502,0.00023,7]
[361852704,1747840247804,-164.863502,0.00023,7]
[361852706,1747840247814,-164.863502,0.00023,7]
[361852708,1747840247825,-164.863492,0.00023,7]
[361852710,1747840247836,-160.59978,0.00023,7]
[361852712,1747840247846,-151.0,0.00023,7]
[361852714,1747840247855,-156.894229,0.00023,7]
[361852716,1747840247865,-151.0,0.00023,7]
[361852718,1747840247875,-152.775055,0.00023,7]
[361852720,1747840247884,-151.0,0.00023,7]
[361852722,1747840247895,-222.588515,0.00023,7]
[361852724,1747840247904,-150.0,0.00023,30]
[361852726,1747840247915,-314.5140147,0.00023,30]
[361852728,1747840247931,-151.0,0.00023,7]
[361852730,1747840247941,-151.0,0.00023,7]
[361852732,1747840247950,-151.0,0.00023,7]
[361852733,1747840247962,-151.0,0.00023,7]
[361852735,1747840247972,-151.0,0.00023,7]
[361852737,1747840247981,-151.0,0.00023,7]
[361852739,1747840247992,-156.79635,0.00023,7]
[361852741,1747840248003,-151.0,0.00023,7]
[361852743,1747840248013,-151.0,0.00023,7]
[361852745,1747840248028,-151.0,0.00023,7]
[361852747,1747840248043,-151.0,0.00023,7]
[361852749,1747840248053,-151.0,0.00023,7]
[361852751,1747840248063,-175.94337436,0.00023,7]
[361852753,1747840248072,-161.762461,0.00023,7]
[361852754,1747840248082,-151.0,0.00023,7]
[361852756,1747840248094,-151.0,0.00023,7]
[361852758,1747840248104,-151.0,0.00023,7]
[361852760,1747840248114,-151.0,0.00023,7]
[361852762,1747840248123,-151.0,0.00023,7]
[361852764,1747840248132,-151.0,0.00023,7]
[361852766,1747840248142,-151.0,0.00023,7]
[361852768,1747840248151,-151.0,0.00023,7]
[361852770,1747840248160,-151.0,0.00023,7]
[361852771,1747840248172,-151.0,0.00023,7]
[361852773,1747840248182,-151.0,0.00023,7]
[361852775,1747840248191,-216.38796,0.00023,7]
[361852777,1747840248201,-151.0,0.00023,2]
[361852779,1747840248212,-151.0,0.00023,2]
[361852781,1747840248221,-151.0,0.00023,2]
[361852783,1747840248232,-151.0,0.00023,2]
[361852785,1747840248242,-151.0,0.00023,2]
[361852787,1747840248252,-151.0,0.00023,2]
[361852789,1747840248262,-151.0,0.00023,2]
[361852791,1747840248272,-151.0,0.00023,2]
[361852793,1747840248282,-151.0,0.00023,2]
[361852795,1747840248293,-151.0,0.00023,2]
[361852797,1747840248304,-160.10388202,0.00023,2]
[361852799,1747840248314,-151.0,0.00023,7]
[361852801,1747840248324,-168.146017,0.00023,7]
[361852803,1747840248334,-151.0,0.00023,2]
[361852805,1747840248343,-151.0,0.00023,7]
[361852807,1747840248353,-291.030631,0.00023,7]
[361852808,1747840248362,-47553.56231655,0.00023,2]
[361852812,1747840248383,-1290.84566295,0.00023,2]
[361853070,1747840895398,171.373447,0.00013699,2]
[361853078,1747841149155,-3515.46421774,0.0001608,2]
[361853083,1747841243086,-245.45204742,0.00016305,2]
[361853099,1747841363075,-1239.08373484,0.00016305,2]
[361853100,1747841363098,-2549.57830066,0.00016385,2]
[361853162,1747841432133,-785.19081326,0.00016221,2]
[361853164,1747841432143,-216.98411846,0.0001637,2]
[361853166,1747841432154,-2543.68591714,0.00016385,2]
[361853167,1747841432163,-544.377557,0.0001647,2]
[361853168,1747841432175,-1136.6030201,0.00016539,2]
[361853169,1747841432186,-1952.5263821,0.00016621,2]
[361853170,1747841432198,-171.0,0.0001674,3]
[361853172,1747841432215,-1200.0,0.00016897,2]
[361853174,1747841432226,-300.0,0.00016898,2]
[361853176,1747841432237,-300.0,0.00016898,2]
[361853178,1747841432248,-300.0,0.00016898,2]
[361853180,1747841432259,-3860.28428045,0.000169,2]
[361853182,1747841432271,-2293.0531773,0.00017002,2]
[361853184,1747841432284,-3860.28428028,0.0001721,2]
[361853186,1747841432298,-3860.28428028,0.00017521,2]
[361853188,1747841432309,-258.75188765,0.000176,2]
[361853190,1747841432320,-3860.28428028,0.00017831,2]
[361853192,1747841432332,-152.0,0.00017992,2]
[361853194,1747841432343,-216.98411844,0.00018137,2]
[361853196,1747841432354,-3860.28428028,0.00018141,2]
[361853198,1747841432366,-512.88946097,0.00018348,2]
[361853200,1747841432379,-500.0,0.00018448,2]
[361853202,1747841432395,-500.0,0.00018448,2]
[361853204,1747841432407,-500.0,0.00018448,2]
[361853206,1747841432419,-500.0,0.00018448,2]
[361853208,1747841432429,-500.0,0.00018448,2]
[361853210,1747841432440,-297.7388577,0.00018448,2]
[361853212,1747841432451,-500.0,0.00018448,2]
[361853214,1747841432465,-639.7601499,0.00018448,2]
[361853216,1747841432476,-500.0,0.00018448,2]
[361853219,1747841432492,-500.0,0.00018448,2]
[361853221,1747841432503,-500.0,0.00018448,2]
[361853223,1747841432514,-500.0,0.00018448,2]
[361853225,1747841432524,-516.93494826,0.00018448,2]
[361853227,1747841432534,-599.27647348,0.00018448,2]
[361853229,1747841432543,-500.0,0.00018448,2]
[361853231,1747841432554,-590.72016472,0.00018448,2]
[361853233,1747841432564,-500.0,0.00018448,2]
[361853235,1747841432574,-345.58408811,0.00018448,2]
[361853237,1747841432587,-154.41591189,0.00018448,2]
[361853239,1747841432598,-500.0,0.00018448,2]
[361853241,1747841432608,-500.0,0.00018448,2]
[361853243,1747841432619,-500.0,0.00018448,2]
[361853245,1747841432631,-500.0,0.00018448,2]
[361853247,1747841432641,-500.0,0.00018448,2]
[361853249,1747841432651,-273.47906662,0.00018448,2]
[361853251,1747841432661,-500.0,0.00018448,2]
[361853253,1747841432671,-500.0,0.00018448,2]
[361853255,1747841432681,-500.0,0.00018448,2]
[361853257,1747841432691,-500.0,0.00018448,2]
[361853259,1747841432701,-500.0,0.00018448,2]
[361853261,1747841432713,-500.0,0.00018448,2]
[361853263,1747841432723,-500.0,0.00018448,2]
[361853265,1747841432733,-500.0,0.00018448,2]
[361853267,1747841432743,-500.0,0.00018448,2]
[361853269,1747841432753,-500.0,0.00018448,2]
[361853271,1747841432762,-500.0,0.00018448,2]
[361853273,1747841432774,-500.0,0.00018448,2]
[361853275,1747841432784,-500.0,0.00018448,2]
[361853277,1747841432795,-500.0,0.00018448,2]
[361853279,1747841432805,-500.0,0.00018448,2]
[361853281,1747841432815,-500.0,0.00018448,2]
[361853283,1747841432825,-500.0,0.00018448,2]
[361853285,1747841432835,-500.0,0.00018448,2]
[361853307,1747841433042,-500.0,0.00018448,2]
[361853310,1747841433056,-500.0,0.00018448,2]
[361853312,1747841433066,-500.0,0.00018448,2]
[361853314,1747841433076,-500.0,0.00018448,2]
[361853316,1747841433087,-500.0,0.00018448,2]
[361853318,1747841433097,-500.0,0.00018448,2]
[361853320,1747841433107,-500.0,0.00018448,2]
[361853322,1747841433117,-500.0,0.00018448,2]
[361853324,1747841433127,-500.0,0.00018448,2]
[361853326,1747841433137,-500.0,0.00018448,2]
[361853328,1747841433148,-500.0,0.00018448,2]
[361853330,1747841433159,-500.0,0.00018448,2]
[361853332,1747841433170,-500.0,0.00018448,2]
[361853334,1747841433181,-500.0,0.00018448,2]
[361853336,1747841433192,-500.0,0.00018448,2]
[361853338,1747841433202,-500.0,0.00018448,2]
[361853340,1747841433215,-500.0,0.00018448,2]
[361853342,1747841433225,-500.0,0.00018448,2]
[361853344,1747841433235,-500.0,0.00018448,2]
[361853346,1747841433246,-500.0,0.00018448,2]
[361853348,1747841433256,-500.0,0.00018448,2]
[361853350,1747841433267,-500.0,0.00018448,2]
[361853352,1747841433277,-500.0,0.00018448,2]
[361853354,1747841433288,-500.0,0.00018448,2]
[361853356,1747841433298,-500.0,0.00018448,2]
[361853358,1747841433311,-500.0,0.00018448,2]
[361853360,1747841433321,-500.0,0.00018448,2]
[361853362,1747841433331,-500.0,0.00018448,2]
[361853363,1747841433341,-500.0,0.00018448,2]
[361853365,1747841433351,-500.0,0.00018448,2]
[361853366,1747841433361,-500.0,0.00018448,2]
[361853367,1747841433371,-500.0,0.00018448,2]
[361853368,1747841433383,-500.0,0.00018448,2]
[361853369,1747841433393,-500.0,0.00018448,2]
[361853370,1747841433402,-500.0,0.00018448,2]
[361853371,1747841433412,-500.0,0.00018448,2]
[361853373,1747841433422,-500.0,0.00018448,2]
[361853375,1747841433432,-500.0,0.00018448,2]
[361853377,1747841433442,-500.0,0.00018448,2]
[361853379,1747841433451,-535.94211851,0.00018448,2]
[361853381,1747841433463,-500.0,0.00018448,2]
[361853383,1747841433472,-500.0,0.00018448,2]
[361853385,1747841433482,-500.0,0.00018448,2]
[361853387,1747841433492,-500.0,0.00018448,2]
[361853389,1747841433502,-500.0,0.00018448,2]
[361853390,1747841433512,-500.0,0.00018448,2]
[361853392,1747841433523,-200.0,0.00018448,2]
[361853394,1747841433533,-500.0,0.00018451,2]
[361853396,1747841433544,-3860.28428028,0.00018452,2]
[361853398,1747841433553,-420.0,0.00018458,2]
[361853400,1747841433563,-420.0,0.00018458,2]
[361853402,1747841433574,-500.87138172,0.00018513,2]
[361853404,1747841433584,-500.0,0.00018513,2]
[361853406,1747841433595,-500.0,0.00018513,2]
[361853408,1747841433606,-1064.0,0.00018549,2]
[361853410,1747841433616,-500.0,0.00018591,2]
[361853413,1747841433626,-501.11294187,0.00018591,2]
[361853415,1747841433637,-500.60381911,0.00018591,2]
[361853416,1747841433647,-345.93719814,0.00018592,2]
[361853418,1747841433657,-500.0,0.00018592,2]
[361853420,1747841433666,-500.0,0.00018592,2]